[Event "Late-Titled-Tuesday-Blitz-February-13-2024"]
[Site "Chess.com"]
[Date "2024.02.13"]
[Round "6"]
[White "Fjal"]
[Black "tarno17"]
[Result "1/2-1/2"]
[WhiteElo "2233"]
[BlackElo "2122"]
[TimeControl "180+1"]
[EndTime "15:07:20 PST"]
[Termination "Game drawn - insufficient material"]

1. Nf3 {[%clk 0:02:42.5]} 1... d5 {[%clk 0:02:56.9]} 2. g3 {[%clk 0:02:43.4]}
2... Nd7 {[%clk 0:02:52.2]} 3. Bg2 {[%clk 0:02:43.8]} 3... e5 {[%clk 0:02:51.8]}
4. d3 {[%clk 0:02:42.9]} 4... Ngf6 {[%clk 0:02:50.1]} 5. O-O {[%clk 0:02:43.6]}
5... Bd6 {[%clk 0:02:36.9]} 6. c4 {[%clk 0:02:43.7]} 6... c6 {[%clk 0:02:36.3]}
7. Nc3 {[%clk 0:02:35.4]} 7... O-O {[%clk 0:02:31.6]} 8. Qb3 {[%clk 0:02:33.7]}
8... Nc5 {[%clk 0:02:18.5]} 9. Qc2 {[%clk 0:02:31.5]} 9... Re8 {[%clk
0:01:30.1]} 10. Bg5 {[%clk 0:02:27.8]} 10... dxc4 {[%clk 0:01:21.3]} 11. dxc4
{[%clk 0:02:22.9]} 11... Bg4 {[%clk 0:01:14.6]} 12. Rad1 {[%clk 0:01:59.5]}
12... Qe7 {[%clk 0:01:06.5]} 13. b4 {[%clk 0:01:56.6]} 13... Ne6 {[%clk
0:01:02]} 14. Bxf6 {[%clk 0:01:56.3]} 14... gxf6 {[%clk 0:00:55.9]} 15. c5
{[%clk 0:01:56.7]} 15... Bc7 {[%clk 0:00:53.6]} 16. Nh4 {[%clk 0:01:57]} 16...
Ng7 {[%clk 0:00:36.7]} 17. Be4 {[%clk 0:01:48.9]} 17... h6 {[%clk 0:00:34.4]}
18. h3 {[%clk 0:01:36.7]} 18... Bxh3 {[%clk 0:00:33.5]} 19. Rfe1 {[%clk
0:01:30.7]} 19... Rad8 {[%clk 0:00:32]} 20. Nf5 {[%clk 0:01:27.8]} 20... Nxf5
{[%clk 0:00:30.6]} 21. Bxf5 {[%clk 0:01:28.7]} 21... Bxf5 {[%clk 0:00:29.2]} 22.
Qxf5 {[%clk 0:01:29.6]} 22... Qe6 {[%clk 0:00:13.8]} 23. Qh5 {[%clk 0:01:29.7]}
23... f5 {[%clk 0:00:08.5]} 24. Qh4 {[%clk 0:01:25.7]} 24... Qg6 {[%clk
0:00:07.4]} 25. Kg2 {[%clk 0:01:21.5]} 25... Qg5 {[%clk 0:00:07.8]} 26. Qh3
{[%clk 0:01:17.1]} 26... e4 {[%clk 0:00:07.9]} 27. e3 {[%clk 0:01:06]} 27... Kg7
{[%clk 0:00:08.2]} 28. Ne2 {[%clk 0:01:05.8]} 28... Rd3 {[%clk 0:00:06.1]} 29.
Nd4 {[%clk 0:01:05.1]} 29... Rxd1 {[%clk 0:00:03.2]} 30. Rxd1 {[%clk 0:01:00.8]}
30... Kg6 {[%clk 0:00:03.6]} 31. Ne2 {[%clk 0:00:57.4]} 31... Rd8 {[%clk
0:00:02.9]} 32. Rxd8 {[%clk 0:00:57.1]} 32... Qxd8 {[%clk 0:00:03]} 33. Nd4
{[%clk 0:00:53.6]} 33... Qg5 {[%clk 0:00:02.9]} 34. Qh1 {[%clk 0:00:52.8]} 34...
Be5 {[%clk 0:00:03]} 35. Ne2 {[%clk 0:00:52.4]} 35... Qf6 {[%clk 0:00:02.6]} 36.
Qd1 {[%clk 0:00:51.7]} 36... Kg7 {[%clk 0:00:01.9]} 37. Qd7 {[%clk 0:00:51.6]}
37... b6 {[%clk 0:00:01.9]} 38. Qxa7 {[%clk 0:00:49.6]} 38... bxc5 {[%clk
0:00:02]} 39. Qxc5 {[%clk 0:00:50.5]} 39... h5 {[%clk 0:00:02.2]} 40. Nf4 {[%clk
0:00:47.5]} 40... Bxf4 {[%clk 0:00:02.6]} 41. exf4 {[%clk 0:00:48.4]} 41... h4
{[%clk 0:00:03.2]} 42. Qe5 {[%clk 0:00:45]} 42... hxg3 {[%clk 0:00:03.3]} 43.
Qxf6+ {[%clk 0:00:42.7]} 43... Kxf6 {[%clk 0:00:03.7]} 44. Kxg3 {[%clk
0:00:42.6]} 44... Ke6 {[%clk 0:00:04.1]} 45. a4 {[%clk 0:00:42.8]} 45... Kd5
{[%clk 0:00:04.5]} 46. Kh4 {[%clk 0:00:42.9]} 46... Kc4 {[%clk 0:00:02.4]} 47.
a5 {[%clk 0:00:43.4]} 47... Kb5 {[%clk 0:00:02.5]} 48. Kg5 {[%clk 0:00:42.4]}
48... c5 {[%clk 0:00:02.5]} 49. bxc5 {[%clk 0:00:42.1]} 49... Kxa5 {[%clk
0:00:02.5]} 50. Kxf5 {[%clk 0:00:42.6]} 50... Kb5 {[%clk 0:00:02.4]} 51. Kxe4
{[%clk 0:00:43.2]} 51... Kxc5 {[%clk 0:00:03]} 52. Kf5 {[%clk 0:00:44.1]} 52...
Kd6 {[%clk 0:00:03.4]} 53. Kf6 {[%clk 0:00:45]} 53... Kd5 {[%clk 0:00:03.4]} 54.
Kxf7 {[%clk 0:00:45.9]} 54... Ke4 {[%clk 0:00:04]} 55. f5 {[%clk 0:00:37.9]}
55... Kxf5 {[%clk 0:00:04.5]} 56. Ke7 {[%clk 0:00:38]} 56... Kf4 {[%clk
0:00:05.4]} 57. Kd6 {[%clk 0:00:38.9]} 57... Kf3 {[%clk 0:00:06.3]} 58. Ke6
{[%clk 0:00:39.1]} 58... Kxf2 {[%clk 0:00:07.2]} 1/2-1/2

[Event "Late-Titled-Tuesday-Blitz-February-13-2024"]
[Site "Chess.com"]
[Date "2024.02.13"]
[Round "6"]
[White "TheSilmarils"]
[Black "Jospem"]
[Result "0-1"]
[WhiteElo "2847"]
[BlackElo "3034"]
[TimeControl "180+1"]
[EndTime "15:07:21 PST"]
[Termination "Jospem won by resignation"]

1. Nf3 {[%clk 0:03:00.9]} 1... Nf6 {[%clk 0:02:59.9]} 2. c4 {[%clk 0:03:01.2]}
2... b6 {[%clk 0:02:59.7]} 3. g3 {[%clk 0:03:01]} 3... Bb7 {[%clk 0:03:00.3]} 4.
Bg2 {[%clk 0:03:01.7]} 4... g6 {[%clk 0:03:01.2]} 5. b3 {[%clk 0:02:54.2]} 5...
Bg7 {[%clk 0:03:01.2]} 6. Bb2 {[%clk 0:02:54.8]} 6... O-O {[%clk 0:03:01.8]} 7.
O-O {[%clk 0:02:55.2]} 7... e6 {[%clk 0:02:58.1]} 8. Nc3 {[%clk 0:02:51.6]} 8...
d6 {[%clk 0:02:58.2]} 9. Qc2 {[%clk 0:02:46.5]} 9... c5 {[%clk 0:02:58.6]} 10.
Rad1 {[%clk 0:02:43.9]} 10... Qe7 {[%clk 0:02:57.3]} 11. e3 {[%clk 0:02:37.2]}
11... Nc6 {[%clk 0:02:53]} 12. d4 {[%clk 0:02:35.9]} 12... cxd4 {[%clk
0:02:48.8]} 13. exd4 {[%clk 0:02:36.8]} 13... d5 {[%clk 0:02:46.6]} 14. Qe2
{[%clk 0:01:59]} 14... dxc4 {[%clk 0:02:30.5]} 15. bxc4 {[%clk 0:01:59.1]} 15...
Na5 {[%clk 0:02:30.7]} 16. d5 {[%clk 0:01:35.9]} 16... Rfd8 {[%clk 0:01:42.8]}
17. Nb5 {[%clk 0:01:20.4]} 17... Qc5 {[%clk 0:01:05.6]} 18. dxe6 {[%clk
0:01:14.8]} 18... Qxc4 {[%clk 0:01:05.7]} 19. exf7+ {[%clk 0:01:09.2]} 19...
Qxf7 {[%clk 0:01:05.4]} 20. Nd6 {[%clk 0:00:30]} 20... Rxd6 {[%clk 0:00:45.4]}
21. Rxd6 {[%clk 0:00:30.9]} 21... Re8 {[%clk 0:00:45.9]} 22. Qd3 {[%clk
0:00:23.4]} 22... Be4 {[%clk 0:00:37.8]} 23. Qd1 {[%clk 0:00:19.9]} 23... Nc4
{[%clk 0:00:32.5]} 24. Bxf6 {[%clk 0:00:18]} 24... Nxd6 {[%clk 0:00:20.1]} 25.
Bxg7 {[%clk 0:00:18]} 25... Bxf3 {[%clk 0:00:20.8]} 26. Bxf3 {[%clk 0:00:15.8]}
26... Kxg7 {[%clk 0:00:21.4]} 27. Qxd6 {[%clk 0:00:11.6]} 27... Qxf3 {[%clk
0:00:21.5]} 28. Rc1 {[%clk 0:00:11.6]} 28... Kg8 {[%clk 0:00:09.2]} 29. h4
{[%clk 0:00:08.9]} 29... b5 {[%clk 0:00:07]} 30. Qd2 {[%clk 0:00:08.4]} 30...
Qf7 {[%clk 0:00:06.2]} 31. Qd6 {[%clk 0:00:07.2]} 31... Qf3 {[%clk 0:00:05.3]}
32. Qc5 {[%clk 0:00:06.7]} 32... a6 {[%clk 0:00:04.8]} 33. Qd6 {[%clk
0:00:07.1]} 33... Qb7 {[%clk 0:00:03.7]} 34. Kh2 {[%clk 0:00:06.3]} 34... Qf3
{[%clk 0:00:03.7]} 35. Qd4 {[%clk 0:00:05.5]} 35... Rf8 {[%clk 0:00:03.9]} 36.
Kg1 {[%clk 0:00:05]} 36... Qf6 {[%clk 0:00:04.3]} 37. Qd5+ {[%clk 0:00:04.4]}
37... Qf7 {[%clk 0:00:05]} 38. Qc5 {[%clk 0:00:03.2]} 38... Qxa2 {[%clk
0:00:04.3]} 39. Rc2 {[%clk 0:00:02.1]} 39... Qe6 {[%clk 0:00:03.7]} 40. Rd2
{[%clk 0:00:02.4]} 40... Qe1+ {[%clk 0:00:02.5]} 41. Kg2 {[%clk 0:00:02.8]}
41... Qxd2 {[%clk 0:00:03]} 0-1

[Event "Late-Titled-Tuesday-Blitz-February-13-2024"]
[Site "Chess.com"]
[Date "2024.02.13"]
[Round "6"]
[White "ChessLover0108"]
[Black "Grossboss19"]
[Result "1-0"]
[WhiteElo "2975"]
[BlackElo "2624"]
[TimeControl "180+1"]
[EndTime "15:07:23 PST"]
[Termination "ChessLover0108 won on time"]

1. c4 {[%clk 0:03:00.9]} 1... e6 {[%clk 0:02:44.3]} 2. Nc3 {[%clk 0:02:59.5]}
2... d5 {[%clk 0:02:43.1]} 3. d4 {[%clk 0:02:59.9]} 3... Nf6 {[%clk 0:02:41.9]}
4. cxd5 {[%clk 0:03:00.3]} 4... exd5 {[%clk 0:02:41.4]} 5. Bg5 {[%clk
0:03:00.9]} 5... Be7 {[%clk 0:02:41.9]} 6. e3 {[%clk 0:03:01.2]} 6... O-O {[%clk
0:02:42.5]} 7. Bd3 {[%clk 0:03:01.9]} 7... Re8 {[%clk 0:02:42]} 8. Nge2 {[%clk
0:03:01.1]} 8... h6 {[%clk 0:02:41.5]} 9. Bh4 {[%clk 0:03:01]} 9... c6 {[%clk
0:02:41.6]} 10. O-O {[%clk 0:03:00.7]} 10... Nh5 {[%clk 0:02:40]} 11. Bxe7
{[%clk 0:02:46.7]} 11... Qxe7 {[%clk 0:02:40.9]} 12. Rb1 {[%clk 0:02:45.1]}
12... a5 {[%clk 0:02:40]} 13. a3 {[%clk 0:02:45]} 13... Na6 {[%clk 0:02:35.5]}
14. Na4 {[%clk 0:02:37.5]} 14... Nf6 {[%clk 0:02:33.2]} 15. Nb6 {[%clk
0:02:32.8]} 15... Ra7 {[%clk 0:02:30.2]} 16. Qa4 {[%clk 0:02:16]} 16... Nc7
{[%clk 0:02:04.3]} 17. b4 {[%clk 0:02:14.6]} 17... Nd7 {[%clk 0:01:49.2]} 18.
Nxc8 {[%clk 0:02:07.3]} 18... Rxc8 {[%clk 0:01:44.7]} 19. bxa5 {[%clk
0:02:08.2]} 19... Rca8 {[%clk 0:01:37.1]} 20. Qb3 {[%clk 0:02:03.6]} 20... Rb8
{[%clk 0:01:30.5]} 21. Qb4 {[%clk 0:02:00.5]} 21... Kf8 {[%clk 0:01:22.6]} 22.
Rfc1 {[%clk 0:01:58.9]} 22... Na6 {[%clk 0:01:18]} 23. Qc3 {[%clk 0:01:55.1]}
23... Rba8 {[%clk 0:01:05.4]} 24. Bxa6 {[%clk 0:01:53.1]} 24... Rxa6 {[%clk
0:01:03.6]} 25. Rxb7 {[%clk 0:01:53.7]} 25... R8a7 {[%clk 0:00:58.4]} 26. Rxa7
{[%clk 0:01:53.3]} 26... Rxa7 {[%clk 0:00:57]} 27. Qxc6 {[%clk 0:01:54.2]} 27...
Rxa5 {[%clk 0:00:55.9]} 28. Nf4 {[%clk 0:01:52.3]} 28... Nf6 {[%clk 0:00:51.9]}
29. a4 {[%clk 0:01:49.4]} 29... g5 {[%clk 0:00:50.5]} 30. Nd3 {[%clk 0:01:48.8]}
30... Kg7 {[%clk 0:00:43]} 31. Ne5 {[%clk 0:01:47.9]} 31... Qa3 {[%clk
0:00:40.2]} 32. Qc7 {[%clk 0:01:43.4]} 32... Ra7 {[%clk 0:00:37.9]} 33. Qc8
{[%clk 0:01:31.5]} 33... Rxa4 {[%clk 0:00:32.5]} 34. h3 {[%clk 0:01:30.7]} 34...
Ra7 {[%clk 0:00:31]} 35. Rb1 {[%clk 0:01:27.9]} 35... Ne4 {[%clk 0:00:20.5]} 36.
Rb8 {[%clk 0:01:25.6]} 36... Kf6 {[%clk 0:00:07.6]} 37. Qh8+ {[%clk 0:01:25.1]}
37... Kf5 {[%clk 0:00:07.8]} 38. g4+ {[%clk 0:01:24.6]} 38... Ke6 {[%clk
0:00:07.1]} 39. Rb6+ {[%clk 0:01:24.4]} 39... Nd6 {[%clk 0:00:06.6]} 40. Qc8+
{[%clk 0:00:54]} 40... Kf6 {[%clk 0:00:06.8]} 41. Qd8+ {[%clk 0:00:52.8]} 41...
Ke6 {[%clk 0:00:06.5]} 42. Kg2 {[%clk 0:00:48.2]} 42... Re7 {[%clk 0:00:04.6]}
43. Nd3 {[%clk 0:00:35.4]} 43... Rd7 {[%clk 0:00:03.2]} 44. Nc5+ {[%clk
0:00:30.3]} 44... Qxc5 {[%clk 0:00:03.1]} 45. Qxd7+ {[%clk 0:00:30.9]} 45...
Kxd7 {[%clk 0:00:03.6]} 46. dxc5 {[%clk 0:00:31.8]} 46... Ne4 {[%clk 0:00:03.4]}
47. Rxh6 {[%clk 0:00:32.3]} 47... Nxc5 {[%clk 0:00:03.8]} 48. Rf6 {[%clk
0:00:33]} 48... Ke7 {[%clk 0:00:03.7]} 49. Rf5 {[%clk 0:00:33.7]} 49... Ne6
{[%clk 0:00:04]} 50. Rxd5 {[%clk 0:00:34.2]} 50... Kf6 {[%clk 0:00:04.9]} 51.
Rf5+ {[%clk 0:00:34.6]} 51... Kg6 {[%clk 0:00:05.2]} 52. Re5 {[%clk 0:00:34.7]}
52... f6 {[%clk 0:00:06.1]} 53. Rxe6 {[%clk 0:00:35.2]} 1-0

[Event "Late-Titled-Tuesday-Blitz-February-13-2024"]
[Site "Chess.com"]
[Date "2024.02.13"]
[Round "6"]
[White "RandomNoob04"]
[Black "KNVB"]
[Result "0-1"]
[WhiteElo "2609"]
[BlackElo "2851"]
[TimeControl "180+1"]
[EndTime "15:07:24 PST"]
[Termination "KNVB won by resignation"]

1. e4 {[%clk 0:03:00.9]} 1... b6 {[%clk 0:02:51.6]} 2. d4 {[%clk 0:03:00.9]}
2... Bb7 {[%clk 0:02:51.5]} 3. Bd3 {[%clk 0:03:01.6]} 3... e6 {[%clk 0:02:52]}
4. Nf3 {[%clk 0:03:02]} 4... d5 {[%clk 0:02:52.6]} 5. exd5 {[%clk 0:03:02.1]}
5... Qxd5 {[%clk 0:02:53.5]} 6. O-O {[%clk 0:02:59.9]} 6... Nf6 {[%clk 0:02:54]}
7. Nc3 {[%clk 0:02:55.9]} 7... Qh5 {[%clk 0:02:54.5]} 8. Be2 {[%clk 0:02:52.4]}
8... Bd6 {[%clk 0:02:44.7]} 9. Ne5 {[%clk 0:02:45.7]} 9... Qh4 {[%clk
0:02:44.9]} 10. g3 {[%clk 0:02:24.5]} 10... Qh3 {[%clk 0:02:45.1]} 11. Bf3
{[%clk 0:02:24.6]} 11... Bxf3 {[%clk 0:02:45]} 12. Qxf3 {[%clk 0:02:25.5]} 12...
c6 {[%clk 0:02:45.3]} 13. Ne4 {[%clk 0:01:57.1]} 13... Bxe5 {[%clk 0:02:04.1]}
14. dxe5 {[%clk 0:01:58]} 14... Nxe4 {[%clk 0:02:04.6]} 15. Qxe4 {[%clk
0:01:58.9]} 15... Qf5 {[%clk 0:02:05.2]} 16. Qxf5 {[%clk 0:01:43.9]} 16... exf5
{[%clk 0:02:06.1]} 17. Rd1 {[%clk 0:01:42.3]} 17... Nd7 {[%clk 0:01:31.3]} 18.
Bf4 {[%clk 0:01:42.1]} 18... O-O-O {[%clk 0:01:21.9]} 19. Rd6 {[%clk 0:01:40]}
19... Nb8 {[%clk 0:01:22.4]} 20. Rad1 {[%clk 0:01:37]} 20... Rxd6 {[%clk
0:01:22.7]} 21. Rxd6 {[%clk 0:01:30.5]} 21... Re8 {[%clk 0:01:13.5]} 22. Kg2
{[%clk 0:01:11.5]} 22... Re6 {[%clk 0:01:10.5]} 23. Kf3 {[%clk 0:01:10.1]} 23...
Rxd6 {[%clk 0:00:59.2]} 24. exd6 {[%clk 0:01:10.1]} 24... Kd7 {[%clk 0:00:57.8]}
25. Ke3 {[%clk 0:00:59.9]} 25... f6 {[%clk 0:00:24.4]} 26. h4 {[%clk 0:00:56]}
26... Ke6 {[%clk 0:00:20.9]} 27. Kd4 {[%clk 0:00:55]} 27... Nd7 {[%clk
0:00:21.2]} 28. c4 {[%clk 0:00:31.5]} 28... c5+ {[%clk 0:00:17.5]} 29. Kc3
{[%clk 0:00:32]} 29... Ne5 {[%clk 0:00:14.3]} 30. b4 {[%clk 0:00:19.5]} 30...
Kxd6 {[%clk 0:00:04.6]} 31. b5 {[%clk 0:00:20]} 31... Ke6 {[%clk 0:00:02.7]} 32.
a4 {[%clk 0:00:20.6]} 32... g6 {[%clk 0:00:02.5]} 33. a5 {[%clk 0:00:19.3]}
33... bxa5 {[%clk 0:00:03.4]} 34. Bh6 {[%clk 0:00:15]} 34... Ke7 {[%clk
0:00:02.2]} 35. Kb3 {[%clk 0:00:10]} 35... a4+ {[%clk 0:00:02.4]} 36. Kc3 {[%clk
0:00:09.6]} 36... Ng4 {[%clk 0:00:01.7]} 37. Bf4 {[%clk 0:00:07.4]} 37... Nxf2
{[%clk 0:00:01.7]} 38. Bb8 {[%clk 0:00:07.5]} 38... Kd7 {[%clk 0:00:01.5]} 39.
Bxa7 {[%clk 0:00:07.4]} 39... Ne4+ {[%clk 0:00:02.4]} 40. Kb2 {[%clk 0:00:06.7]}
40... Kc7 {[%clk 0:00:03.3]} 41. Ka3 {[%clk 0:00:02.2]} 41... Kb7 {[%clk
0:00:04]} 42. b6 {[%clk 0:00:02.7]} 42... Nxg3 {[%clk 0:00:04.1]} 43. Kxa4
{[%clk 0:00:03.1]} 43... Ne4 {[%clk 0:00:04.4]} 44. Kb5 {[%clk 0:00:04]} 44...
f4 {[%clk 0:00:05.1]} 45. Bb8 {[%clk 0:00:02.8]} 45... Kxb8 {[%clk 0:00:05.5]}
46. Kc6 {[%clk 0:00:02.6]} 46... f3 {[%clk 0:00:06.2]} 0-1

[Event "Late-Titled-Tuesday-Blitz-February-13-2024"]
[Site "Chess.com"]
[Date "2024.02.13"]
[Round "6"]
[White "stregachess"]
[Black "Jamal-Jamal-Jamal"]
[Result "1-0"]
[WhiteElo "2070"]
[BlackElo "2255"]
[TimeControl "180+1"]
[EndTime "15:07:27 PST"]
[Termination "stregachess won on time"]

1. d4 {[%clk 0:03:00.9]} 1... e6 {[%clk 0:03:00.8]} 2. Nf3 {[%clk 0:03:00.4]}
2... d5 {[%clk 0:03:01.4]} 3. Bf4 {[%clk 0:03:00.2]} 3... Nf6 {[%clk 0:03:01.9]}
4. e3 {[%clk 0:03:00.1]} 4... Bd6 {[%clk 0:03:02.5]} 5. Bg3 {[%clk 0:02:58.5]}
5... b6 {[%clk 0:03:03.1]} 6. Nbd2 {[%clk 0:02:57.3]} 6... Bb7 {[%clk
0:03:03.3]} 7. Bd3 {[%clk 0:02:54.8]} 7... c5 {[%clk 0:03:03.1]} 8. Bb5+ {[%clk
0:02:50.6]} 8... Nc6 {[%clk 0:03:00.5]} 9. Ne5 {[%clk 0:02:49]} 9... Rc8 {[%clk
0:02:58.4]} 10. c3 {[%clk 0:02:18]} 10... O-O {[%clk 0:02:45.5]} 11. Nxc6 {[%clk
0:02:17.2]} 11... Bxc6 {[%clk 0:02:46.4]} 12. Ba6 {[%clk 0:02:17.2]} 12... Rb8
{[%clk 0:02:42.8]} 13. Bd3 {[%clk 0:02:16.3]} 13... Ne4 {[%clk 0:02:33.3]} 14.
Qh5 {[%clk 0:02:01.9]} 14... f5 {[%clk 0:02:29.9]} 15. Bxd6 {[%clk 0:01:55.8]}
15... Qxd6 {[%clk 0:02:27.6]} 16. Nf3 {[%clk 0:01:56.1]} 16... cxd4 {[%clk
0:02:22.8]} 17. exd4 {[%clk 0:01:55.4]} 17... Be8 {[%clk 0:02:20.7]} 18. Qh3
{[%clk 0:01:49.9]} 18... h6 {[%clk 0:02:14.5]} 19. Bxe4 {[%clk 0:01:46.3]} 19...
fxe4 {[%clk 0:02:15.4]} 20. Ne5 {[%clk 0:01:46.7]} 20... Bb5 {[%clk 0:02:05.3]}
21. a4 {[%clk 0:01:31.9]} 21... Ba6 {[%clk 0:01:59.3]} 22. b4 {[%clk 0:01:27.9]}
22... Bd3 {[%clk 0:01:09.2]} 23. Nxd3 {[%clk 0:01:22.5]} 23... exd3 {[%clk
0:01:10.1]} 24. Qxd3 {[%clk 0:01:22.5]} 24... e5 {[%clk 0:01:06.6]} 25. O-O
{[%clk 0:00:54.9]} 25... e4 {[%clk 0:01:06.6]} 26. Qe3 {[%clk 0:00:55.3]} 26...
Rf5 {[%clk 0:01:04]} 27. f3 {[%clk 0:00:48.8]} 27... Rh5 {[%clk 0:00:41.3]} 28.
h3 {[%clk 0:00:46.9]} 28... Re8 {[%clk 0:00:40.5]} 29. fxe4 {[%clk 0:00:45.4]}
29... Rxe4 {[%clk 0:00:41.4]} 30. Qf3 {[%clk 0:00:45.7]} 30... Rg5 {[%clk
0:00:34.9]} 31. Rae1 {[%clk 0:00:39.2]} 31... Qe6 {[%clk 0:00:32.4]} 32. Rxe4
{[%clk 0:00:36.4]} 32... dxe4 {[%clk 0:00:33.3]} 33. Qe3 {[%clk 0:00:27.9]}
33... Kh7 {[%clk 0:00:33.7]} 34. Rd1 {[%clk 0:00:25.3]} 34... Qd5 {[%clk
0:00:31.4]} 35. Rc1 {[%clk 0:00:23.4]} 35... Rg6 {[%clk 0:00:14.1]} 36. c4
{[%clk 0:00:22.3]} 36... Qd6 {[%clk 0:00:12]} 37. c5 {[%clk 0:00:20.5]} 37...
bxc5 {[%clk 0:00:10.5]} 38. dxc5 {[%clk 0:00:20.2]} 38... Qc6 {[%clk 0:00:10.1]}
39. b5 {[%clk 0:00:16.2]} 39... Qc7 {[%clk 0:00:10.2]} 40. c6 {[%clk 0:00:15.3]}
40... Rg3 {[%clk 0:00:08.6]} 41. Qxe4+ {[%clk 0:00:14.9]} 41... Kh8 {[%clk
0:00:07.4]} 42. Rc2 {[%clk 0:00:12.5]} 42... Qb6+ {[%clk 0:00:06.4]} 43. Kh2
{[%clk 0:00:11.9]} 43... Qc7 {[%clk 0:00:07.3]} 44. Kh1 {[%clk 0:00:11.4]} 44...
Ra3 {[%clk 0:00:05.5]} 45. Rc1 {[%clk 0:00:10.1]} 45... Rg3 {[%clk 0:00:04.8]}
46. Rf1 {[%clk 0:00:09.5]} 1-0

[Event "Late-Titled-Tuesday-Blitz-February-13-2024"]
[Site "Chess.com"]
[Date "2024.02.13"]
[Round "6"]
[White "Genghis_K"]
[Black "aa175"]
[Result "1-0"]
[WhiteElo "2919"]
[BlackElo "2697"]
[TimeControl "180+1"]
[EndTime "15:07:30 PST"]
[Termination "Genghis_K won by resignation"]

1. e4 {[%clk 0:02:51.3]} 1... e5 {[%clk 0:03:00.2]} 2. Nf3 {[%clk 0:02:51.5]}
2... Nf6 {[%clk 0:03:00.2]} 3. d4 {[%clk 0:02:52.1]} 3... Nxe4 {[%clk
0:02:59.6]} 4. Bd3 {[%clk 0:02:52.8]} 4... d5 {[%clk 0:03:00]} 5. Nxe5 {[%clk
0:02:53.1]} 5... Nd7 {[%clk 0:03:00.7]} 6. Nc3 {[%clk 0:02:53.5]} 6... Nxe5
{[%clk 0:03:00.8]} 7. dxe5 {[%clk 0:02:53.8]} 7... Bb4 {[%clk 0:03:01.6]} 8. O-O
{[%clk 0:02:53.9]} 8... Nxc3 {[%clk 0:03:02.3]} 9. bxc3 {[%clk 0:02:54.7]} 9...
Bxc3 {[%clk 0:03:03.2]} 10. Rb1 {[%clk 0:02:55.4]} 10... O-O {[%clk 0:03:02.8]}
11. Bxh7+ {[%clk 0:02:55.8]} 11... Kxh7 {[%clk 0:03:03.7]} 12. Qd3+ {[%clk
0:02:56.4]} 12... Kg8 {[%clk 0:03:04.6]} 13. Qxc3 {[%clk 0:02:56.9]} 13... a5
{[%clk 0:03:05.5]} 14. f4 {[%clk 0:02:57.5]} 14... d4 {[%clk 0:03:05.6]} 15. Qd3
{[%clk 0:02:57.6]} 15... Qd5 {[%clk 0:03:02.5]} 16. c4 {[%clk 0:02:48.1]} 16...
Qc6 {[%clk 0:02:59]} 17. f5 {[%clk 0:02:45.7]} 17... b6 {[%clk 0:02:55.3]} 18.
Qg3 {[%clk 0:02:36.2]} 18... Bxf5 {[%clk 0:02:40.9]} 19. Rxf5 {[%clk 0:01:52.8]}
19... Qe4 {[%clk 0:02:40.2]} 20. Rg5 {[%clk 0:01:53.3]} 20... Qxb1 {[%clk
0:02:40.5]} 21. Rxg7+ {[%clk 0:01:53.3]} 21... Kh8 {[%clk 0:02:41.2]} 22. Qg5
{[%clk 0:01:51.4]} 22... Qxc1+ {[%clk 0:02:35.2]} 23. Qxc1 {[%clk 0:01:51.2]}
23... Kxg7 {[%clk 0:02:36.1]} 24. Qg5+ {[%clk 0:01:49.9]} 24... Kh8 {[%clk
0:02:32.5]} 25. Qh4+ {[%clk 0:01:49.6]} 25... Kg8 {[%clk 0:02:33.1]} 26. Qg4+
{[%clk 0:01:46.9]} 26... Kh7 {[%clk 0:02:32.3]} 27. Qe4+ {[%clk 0:01:46.7]}
27... Kg8 {[%clk 0:02:31.9]} 28. Qxd4 {[%clk 0:01:43.3]} 28... Rad8 {[%clk
0:02:32.1]} 29. Qg4+ {[%clk 0:01:43.3]} 29... Kh7 {[%clk 0:02:31.4]} 30. Qh5+
{[%clk 0:01:43.7]} 30... Kg8 {[%clk 0:02:31.9]} 31. h4 {[%clk 0:01:42.7]} 31...
Rfe8 {[%clk 0:02:26.4]} 32. Qg5+ {[%clk 0:01:40.2]} 32... Kh7 {[%clk 0:02:24]}
33. Qf5+ {[%clk 0:01:38.5]} 33... Kg8 {[%clk 0:02:24.2]} 34. h5 {[%clk
0:01:38.7]} 34... Rd1+ {[%clk 0:02:10.6]} 35. Kh2 {[%clk 0:01:38.1]} 35... Rd4
{[%clk 0:02:04]} 36. Qg5+ {[%clk 0:01:16.3]} 36... Kh7 {[%clk 0:02:03.2]} 37.
Qf6 {[%clk 0:01:13.5]} 37... Rg8 {[%clk 0:01:59.5]} 38. e6 {[%clk 0:00:43]}
38... Rdg4 {[%clk 0:01:57.4]} 39. Qf5+ {[%clk 0:00:42.5]} 39... Kh6 {[%clk
0:01:21.4]} 40. exf7 {[%clk 0:00:42.2]} 40... Rxg2+ {[%clk 0:01:21.3]} 41. Kh3
{[%clk 0:00:38.8]} 41... R8g3+ {[%clk 0:01:16.5]} 42. Kh4 {[%clk 0:00:38.9]}
42... Rg4+ {[%clk 0:01:17.4]} 43. Qxg4 {[%clk 0:00:37.4]} 43... Rxg4+ {[%clk
0:01:18.3]} 44. Kxg4 {[%clk 0:00:38.1]} 44... Kg7 {[%clk 0:01:19.2]} 45. Kf5
{[%clk 0:00:34.4]} 45... Kxf7 {[%clk 0:01:19.1]} 46. Ke5 {[%clk 0:00:35.1]}
46... c6 {[%clk 0:00:28.9]} 47. a4 {[%clk 0:00:27.2]} 47... Kg7 {[%clk
0:00:22.3]} 48. Kd4 {[%clk 0:00:22.7]} 48... Kh6 {[%clk 0:00:02.7]} 49. c5
{[%clk 0:00:23.1]} 49... bxc5+ {[%clk 0:00:01.5]} 50. Kxc5 {[%clk 0:00:24]}
50... Kxh5 {[%clk 0:00:02.1]} 51. Kxc6 {[%clk 0:00:17.1]} 51... Kg6 {[%clk
0:00:02.7]} 52. Kb6 {[%clk 0:00:17.9]} 52... Kf7 {[%clk 0:00:03.5]} 53. Kxa5
{[%clk 0:00:18.6]} 53... Ke8 {[%clk 0:00:04.2]} 54. Kb6 {[%clk 0:00:19.3]} 54...
Kd8 {[%clk 0:00:04.9]} 55. Kb7 {[%clk 0:00:20.1]} 1-0